bitfinex-derivatives/quotes_ETHF0:USTF0_20250817
["timestamp","ask_amount","ask_price","bid_price","bid_amount"]
[1755460238150,1.88187864,4459.2,4459.1,0.10091609]
[1755460238746,1.88174621,4459.2,4459.1,0.10091609]
[1755460241951,1.88166249,4459.2,4459.1,0.10091609]
[1755460242449,1.88163831,4459.2,4459.1,0.10091609]
[1755460242955,0.83023831,4459.2,4457.8,3.2078]
[1755460243146,3.2078,4458.3,4456.0,0.2478]
[1755460243354,3.2078,4456.5,4456.4,1.7514]
[1755460243547,3.39931402,4456.5,4456.4,1.7514]
[1755460244176,3.2078,4456.5,4456.4,1.7514]
[1755460244655,3.44231054,4456.5,4456.4,1.7514]
[1755460246446,3.2078,4456.5,4456.4,1.7514]
[1755460252159,26.663,4463.1,4456.4,1.7738]
[1755460252160,3.2078,4457.2,4456.4,1.7738]
[1755460252464,3.2078,4457.2,4457.0,0.6894]
[1755460252664,3.2078,4457.2,4457.1,1.7282]
[1755460253262,2.1231,4457.2,4457.1,1.7282]
[1755460253454,0.3663,4458.1,4457.6,1.4732]
[1755460253765,0.3663,4458.1,4458.0,0.6894]
[1755460253961,0.5251,4458.1,4458.0,1.7282]
[1755460254165,0.7743,4458.1,4458.0,1.7282]
[1755460254664,1.4338,4458.1,4458.0,1.7282]
[1755460259755,0.7743,4458.1,4458.0,1.7282]
[1755460260360,1.0395,4458.1,4458.0,1.7282]
[1755460260663,1.4338,4458.1,4458.0,1.7282]
[1755460262259,3.2078,4458.3,4458.2,0.1623]
[1755460262465,3.2078,4458.8,4458.7,1.7282]
[1755460262965,3.881,4458.8,4458.7,1.7282]
[1755460263267,4.6416,4458.8,4458.7,1.7282]
[1755460263667,3.9821,4458.8,4458.7,1.7282]
[1755460263864,3.2078,4458.8,4458.7,1.7282]
[1755460264470,3.42191129,4458.8,4458.7,1.7282]
[1755460264967,4.19621129,4458.8,4458.7,1.7282]
[1755460265169,4.19624086,4458.8,4458.7,1.7282]
[1755460266262,4.19624086,4458.8,4458.2,0.0224]
[1755460266263,7.48384086,4458.8,4457.7,3.2078]
[1755460266468,0.408,4457.1,4457.0,0.255]
[1755460266659,1.6953,4457.1,4457.0,0.4173]
[1755460266866,0.6732,4456.6,4456.5,0.255]
[1755460267064,3.2078,4456.9,4456.6,0.255]
[1755460267269,0.6732,4456.7,4456.6,1.7282]
[1755460267470,1.90934112,4456.7,4456.6,1.3606]
[1755460267767,1.90934112,4456.7,4456.6,0.6857]
[1755460268072,1.6953,4456.7,4456.3,0.6226]
[1755460268369,3.2078,4456.9,4455.9,3.2078]
[1755460268370,1.301,4456.5,4455.9,3.2078]
[1755460268565,1.4338,4456.0,4455.9,1.7282]
[1755460268970,1.64782411,4456.0,4455.9,1.7282]
[1755460269672,0.21402411,4456.0,4455.9,1.3606]
[1755460269872,0.88722411,4456.0,4455.9,1.7282]
[1755460270069,1.64782411,4456.0,4455.9,1.7282]
[1755460271368,1.64766461,4456.0,4455.9,1.7282]
[1755460272475,1.25336461,4456.0,4455.9,1.7282]
[1755460272680,0.21386461,4456.0,4455.9,1.7506]
[1755460272979,3.2078,4456.8,4456.7,1.7282]
[1755460273373,0.5251,4457.5,4457.4,0.4307]
[1755460273573,0.408,4457.5,4457.4,1.7282]
[1755460275275,1.301,4457.5,4457.4,1.7282]
[1755460277076,1.6953,4457.5,4457.4,1.7282]
[1755460277476,1.0221,4457.4,4456.5,1.0388]
[1755460277677,0.1588,4456.6,4456.5,2.17671]
[1755460278176,0.7542,4456.7,4456.6,0.5287]
[1755460278483,1.7223,4456.7,4456.6,1.7547]
[1755460278674,1.3004,4456.7,4456.6,1.7547]
[1755460279169,3.6186,4457.1,4457.0,0.6933]
[1755460279368,3.9956,4457.6,4457.5,0.6933]
[1755460279569,3.9956,4457.6,4457.5,1.7547]
[1755460279770,4.263,4457.6,4457.5,1.7547]
[1755460280179,4.9301,4457.6,4457.5,1.7547]
[1755460281180,0.6782,4457.4,4457.3,1.1124]
[1755460281380,1.7223,4457.4,4457.3,1.7547]
[1755460281580,1.0552,4457.4,4457.3,1.7547]
[1755460282180,3.2078,4457.6,4457.3,1.7547]
[1755460282380,3.377,4457.6,4457.5,0.6933]
[1755460282682,3.377,4457.6,4457.5,1.7547]
[1755460283689,3.2078,4457.6,4457.5,1.7547]
[1755460284175,3.377,4457.6,4457.5,1.7547]
[1755460284375,3.6186,4457.6,4457.5,1.7547]
[1755460284583,4.263,4457.6,4457.5,1.7547]
[1755460284788,5.14901008,4457.6,4457.5,1.7547]
[1755460285179,5.14901008,4457.6,4457.5,1.1124]
[1755460285785,5.14901008,4457.6,4457.5,1.3612]
[1755460286683,4.9301,4457.6,4457.5,1.3612]
[1755460286884,5.14907674,4457.6,4457.5,1.3612]
[1755460287082,5.14907674,4457.6,4457.5,1.1124]
[1755460287985,5.14907674,4457.6,4457.5,1.7547]
[1755460292989,5.14907674,4457.6,4457.5,0.6938]
[1755460293291,5.14907674,4457.6,4456.6,3.2078]
[1755460293292,1.3004,4457.1,4457.0,1.7547]
[1755460293490,1.7223,4457.1,4457.0,1.7547]
[1755460294486,0.1692,4457.1,4457.0,1.7547]
[1755460294693,0.377,4457.4,4457.0,0.6933]
[1755460294887,1.033,4457.4,4457.3,1.7547]
[1755460295087,1.25214147,4457.4,4457.3,1.7547]
[1755460296097,1.00706809,4457.4,4457.3,1.7547]
[1755460296482,1.00718064,4457.4,4457.3,1.7547]
[1755460296699,0.21938063,4457.4,4457.3,1.7547]
[1755460297294,0.38858063,4457.4,4457.3,1.7547]
[1755460297489,1.00718063,4457.4,4457.3,1.7547]
[1755460298189,1.51978063,4457.4,4457.3,1.7547]
[1755460298996,1.51984591,4457.4,4457.3,1.7547]
[1755460300794,1.94174591,4457.4,4457.3,1.7547]
[1755460301098,0.63041592,4457.4,4456.7,0.44848]
[1755460301291,1.94191592,4457.3,4457.2,1.7547]
[1755460301790,0.38881592,4457.3,4457.2,1.7547]
[1755460301997,0.38898408,4457.3,4457.2,1.7547]
[1755460302193,1.94208408,4457.3,4457.2,1.7547]
[1755460304596,2.58815998,4457.3,4457.2,1.7547]
[1755460305096,2.58841228,4457.3,4457.2,1.7547]
[1755460305598,2.58841413,4457.3,4457.2,1.7547]
[1755460305992,2.58841417,4457.3,4457.2,1.7547]
[1755460313290,2.58841417,4457.3,4456.6,3.2078]
[1755460313496,0.1675,4456.8,4456.7,1.729]
[1755460313696,0.1675,4456.2,4456.1,1.3337]
[1755460313998,0.535,4456.2,4456.1,1.3337]
[1755460314198,1.0295,4456.2,4456.1,1.3337]
[1755460314391,1.86152996,4456.2,4456.1,1.729]
[1755460314596,1.6658,4456.2,4456.1,1.3411]
[1755460314796,1.6658,4456.2,4456.1,1.729]
[1755460315699,1.6658,4456.2,4456.0,4.1068]
[1755460315700,1.6658,4456.1,4456.0,0.899]
[1755460315896,2.50755317,4456.1,4456.0,0.899]
[1755460316097,2.50755317,4456.1,4456.0,1.2943]
[1755460316501,5.71535317,4456.1,4456.0,1.2943]
[1755460316700,5.71535317,4456.1,4456.0,0.899]
[1755460316900,5.73775317,4456.1,4456.0,0.899]
[1755460317700,0.4207,4455.0,4454.9,1.4723]
[1755460317905,1.0031,4455.0,4454.9,1.729]
[1755460318098,1.19818425,4455.0,4454.9,1.729]
[1755460318291,1.0031,4455.0,4454.9,1.729]
[1755460318497,0.7977,4455.0,4454.9,1.729]
[1755460319395,0.4207,4455.0,4454.9,1.729]
[1755460321004,3.4132,4455.4,4455.3,1.729]
[1755460321005,3.2078,4455.4,4455.3,1.729]
[1755460321299,3.2078,4456.0,4455.3,1.729]
[1755460321492,3.2078,4456.6,4456.5,1.4723]
[1755460321694,3.2078,4456.6,4456.5,1.729]
[1755460322798,3.2078,4457.4,4456.6,1.2317]
[1755460323004,3.2078,4457.4,4457.3,1.729]
[1755460323303,3.56997498,4457.4,4457.3,1.729]
[1755460323595,4.20017498,4457.4,4457.3,1.729]
[1755460324198,3.40247498,4457.4,4457.3,0.9458]
[1755460324400,3.2078,4457.9,4457.8,0.4157]
[1755460324597,3.2078,4457.9,4457.8,1.729]
[1755460326401,3.2078,4457.9,4457.8,1.7514]
[1755460326595,0.7763,4458.9,4458.8,0.6891]
[1755460326895,0.7763,4458.9,4458.8,1.729]
[1755460327700,1.0295,4458.9,4458.8,1.729]
[1755460328103,1.2888,4458.9,4458.8,1.729]
[1755460328302,1.6658,4458.9,4458.8,1.729]
[1755460330400,0.4088,4458.9,4458.8,0.6891]
[1755460330605,1.6658,4458.9,4458.8,1.729]
[1755460339603,1.6658,4458.9,4458.5,0.2597]
[1755460339811,1.687,4458.9,4458.8,1.6989]
[1755460342912,1.3144,4458.9,4458.8,1.6989]
[1755460343112,0.8271,4459.2,4459.1,0.6817]
[1755460343317,1.0864,4459.2,4459.1,1.6989]
[1755460344019,0.434,4459.2,4459.1,1.6989]
[1755460344518,0.8271,4459.2,4459.1,1.6989]
[1755460344815,1.0864,4459.2,4459.1,1.6989]
[1755460345014,1.459,4459.2,4459.1,1.6989]
[1755460345319,1.3244,4459.2,4458.4,3.2078]
[1755460345619,1.7175,4458.5,4458.4,4.2679]
[1755460345818,1.7175,4458.5,4458.4,25.1629]
[1755460346019,1.7175,4458.5,4458.4,25.8017]
[1755460346714,1.7175,4458.5,4458.4,22.5939]
[1755460347812,1.7175,4458.5,4458.4,22.2155]
[1755460348012,1.7175,4458.5,4457.9,3.2078]
[1755460348214,0.5168,4458.1,4458.0,21.5727]
[1755460348412,1.7175,4458.1,4458.0,22.5899]
[1755460348811,1.7175,4458.1,4458.0,20.891]
[1755460349818,1.7175,4458.1,4458.0,21.6892]
[1755460350015,1.7175,4458.1,4458.0,21.9489]
[1755460350222,1.7175,4458.1,4458.0,22.5899]
[1755460350421,1.7175,4458.1,4458.0,22.2115]
[1755460352123,1.7175,4458.1,4458.0,22.5899]
[1755460352623,1.7175,4458.1,4458.0,1.6989]
[1755460353326,1.91161412,4458.1,4458.0,1.6989]
[1755460354519,0.83763627,4458.1,4458.0,1.6989]
[1755460354723,0.19411412,4458.1,4458.0,1.6989]
[1755460354925,0.3931,4458.8,4458.0,1.7213]
[1755460355122,0.83779716,4458.7,4458.6,0.6817]
[1755460355425,0.83779716,4458.7,4458.6,1.6989]
[1755460356929,0.7925,4460.2,4460.1,0.6817]
[1755460357230,1.8175,4460.2,4460.1,22.3222]
[1755460358130,0.6925,4459.5,4459.4,1.2696]
[1755460358335,1.7175,4459.5,4459.4,22.1516]
[1755460358523,1.7175,4459.5,4459.4,22.3212]
[1755460359017,0.2593,4459.5,4459.4,22.3212]
[1755460359426,0.435,4460.1,4460.0,0.4191]
[1755460359721,0.435,4460.1,4460.0,22.4795]
[1755460360927,1.7175,4460.1,4460.0,22.3172]
[1755460363424,0.9518,4460.1,4460.0,22.3172]
[1755460365031,0.1,4460.2,4460.1,1.3513]
[1755460365231,0.1,4460.2,4460.0,20.878]
[1755460365232,1.5582,4460.2,4460.0,20.878]
[1755460365636,1.7175,4460.1,4460.0,20.878]
[1755460365833,1.025,4460.0,4459.7,3.2078]
[1755460366035,1.7175,4459.8,4459.2,0.3791]
[1755460366236,1.7175,4459.4,4459.3,22.1396]
[1755460366637,1.7175,4459.4,4459.3,1.4392]
[1755460367135,1.7175,4459.4,4459.3,22.3082]
[1755460367335,0.435,4459.4,4459.3,4.8086]
[1755460367636,1.6921,4459.4,4459.3,22.3072]
[1755460368441,1.6921,4459.4,4459.3,1.4392]
[1755460368640,1.6921,4459.4,4459.3,22.3062]
[1755460368843,1.6921,4459.4,4459.3,21.3791]
[1755460369637,1.6921,4459.4,4459.3,22.3441]
[1755460370137,0.435,4459.4,4459.3,22.5065]
[1755460370343,1.0041,4459.9,4459.3,22.3441]
[1755460370544,1.4357,4459.9,4459.8,0.6498]
[1755460370738,1.4357,4459.9,4459.8,22.3173]
[1755460371244,1.6888,4459.9,4459.8,20.865]
[1755460372041,1.6888,4459.9,4459.8,22.1548]
[1755460372241,1.6888,4459.9,4459.8,22.3173]
[1755460373041,0.9378,4459.9,4459.8,22.3173]
[1755460373342,0.1,4460.2,4460.1,0.4119]
[1755460373545,0.3531,4460.2,4460.1,22.4777]
[1755460374344,0.5182,4460.2,4460.1,22.4777]
[1755460374547,0.3531,4460.2,4460.1,22.4777]
[1755460374848,0.1,4460.2,4460.1,22.4777]
[1755460375139,0.1,4460.2,4460.1,22.92584]
[1755460375446,0.1,4460.2,4460.1,22.94824]
[1755460377138,0.1,4460.2,4460.1,22.92584]
[1755460377343,0.1,4460.2,4460.1,22.94824]
[1755460377543,0.1,4460.2,4460.1,26.15604]
[1755460378645,0.1,4460.2,4460.1,25.6855]
[1755460379150,0.3531,4460.2,4460.1,25.6855]
[1755460379537,3.2078,4461.2,4460.1,28.5231]
[1755460379743,0.2531,4462.7,4461.7,0.3957]
[1755460379942,0.2531,4462.7,4461.3,1.12006]
[1755460379943,1.3055,4462.7,4462.6,4.6601]
[1755460380149,0.4182,4462.7,4462.6,25.5141]
[1755460380543,0.4182,4462.7,4462.6,25.6765]
[1755460381241,0.4182,4462.7,4462.6,25.5141]
[1755460382955,0.9378,4462.7,4462.6,25.5141]
[1755460383251,1.3211,4462.7,4462.6,25.5141]
[1755460383645,1.6888,4462.7,4462.6,25.5141]
[1755460384356,1.6888,4462.7,4462.6,3.6951]
[1755460384542,1.6888,4462.7,4462.6,24.0558]
[1755460385151,3.2078,4464.2,4462.6,24.0558]
[1755460385347,0.3677,4465.3,4464.2,0.4068]
[1755460385646,5.04092059,4465.8,4462.6,53.128]
[1755460385647,1.3278,4465.1,4465.0,3.2078]
[1755460385843,1.3278,4465.1,4465.0,23.3951]
[1755460386039,1.3055,4465.1,4465.0,23.3951]
[1755460386248,4.3278,4465.1,4465.0,2.5481]
[1755460387447,4.6888,4465.1,4465.0,2.5481]
[1755460388345,1.6888,4465.1,4465.0,2.5481]
[1755460389959,1.6888,4465.1,4465.0,3.6047]
[1755460390253,1.6888,4465.1,4465.0,2.5481]
[1755460390552,1.6888,4464.6,4464.5,20.838]
[1755460390754,0.6847,4464.4,4464.3,3.2078]
[1755460390953,1.56789512,4464.4,4464.3,3.2078]
[1755460391151,2.31889512,4464.4,4464.3,3.2078]
[1755460391850,2.31889512,4464.4,4463.8,3.2078]
[1755460391851,5.34119512,4464.4,4463.8,3.2078]
[1755460392048,0.43,4463.4,4463.3,3.2078]
[1755460392254,1.0664,4463.4,4463.3,3.2078]
[1755460392747,3.2078,4464.2,4463.3,4.9119]
[1755460392952,0.8133,4463.9,4463.8,4.674]
[1755460393152,0.8133,4463.9,4463.8,25.7459]
[1755460393549,1.0664,4463.9,4463.8,3.2078]
[1755460393854,0.43,4463.4,4463.3,3.2078]
[1755460394055,1.0664,4463.4,4463.3,3.2078]
[1755460394856,1.0664,4462.7,4462.6,3.2078]
[1755460395054,1.05937823,4462.7,4462.1,0.6447]
[1755460395255,1.0664,4462.2,4462.1,0.2379]
[1755460395557,1.0664,4462.2,4462.1,0.4004]
[1755460395758,1.0664,4462.2,4462.1,1.7041]
[1755460396057,1.0664,4462.2,4462.1,0.9016]
[1755460396252,1.0664,4462.0,4461.9,53.097]
[1755460396551,0.6831,4462.0,4461.9,1.7041]
[1755460396750,0.1651,4462.0,4461.9,1.7041]
[1755460396945,3.2078,4463.3,4461.9,1.0455]
[1755460397256,1.0664,4462.1,4462.0,1.7041]
[1755460397454,0.62977076,4463.2,4461.8,3.2078]
[1755460397455,0.43,4461.9,4461.8,3.2078]
[1755460397651,0.8133,4461.9,4461.8,4.4707]
[1755460397952,1.09,4462.0,4461.9,0.4095]
[1755460398151,1.09,4462.0,4461.9,0.6616]
[1755460398546,1.72024409,4462.0,4461.9,21.4966]
[1755460398749,1.47475426,4462.0,4461.9,22.5177]
[1755460398950,0.8445,4462.0,4461.9,22.5177]
[1755460399350,1.09,4462.0,4461.8,3.2078]
[1755460399555,0.4457,4462.0,4461.8,3.2078]
[1755460399749,0.4457,4461.7,4461.6,20.835]
[1755460399949,1.09,4461.7,4461.6,20.835]
[1755460400154,0.4457,4461.7,4461.3,3.4538]
[1755460400357,0.4457,4461.4,4461.3,25.0634]
[1755460400559,1.09,4461.4,4461.3,25.0634]
[1755460400858,1.09,4461.4,4461.3,25.7245]
[1755460401156,0.8445,4461.4,4461.3,25.7265]
[1755460403052,0.4457,4461.4,4461.3,25.7265]
[1755460403455,1.584997,4463.0,4461.3,25.7265]
[1755460403456,1.584997,4463.9,4462.9,0.0224]
[1755460403756,0.8445,4464.3,4464.2,1.0216]
[1755460403960,1.72185006,4464.3,4464.2,1.0216]
[1755460405455,1.72185006,4464.3,4464.0,20.932]
[1755460405656,1.09,4464.1,4463.7,20.923]
[1755460405858,0.4457,4463.8,4463.7,20.923]
[1755460406156,1.72185006,4463.8,4463.7,20.923]
[1755460406557,0.63185006,4463.8,4463.7,20.923]
[1755460406754,0.63185006,4463.8,4463.7,22.6057]
[1755460407061,0.3988,4464.6,4463.8,1.0121]
[1755460407263,0.3988,4464.6,4464.5,1.3227]
[1755460407264,0.8445,4464.6,4464.5,1.3227]
[1755460407559,1.05788565,4464.6,4464.5,1.6827]
[1755460407760,1.30338565,4464.6,4464.5,0.246]
[1755460407954,1.70218565,4464.6,4464.5,0.246]
[1755460408263,1.45668565,4464.6,4464.5,1.6827]
[1755460409064,1.70218565,4464.6,4464.5,1.6827]
[1755460409268,0.78708565,4464.6,4464.5,1.6827]
[1755460409564,1.45668565,4464.6,4464.5,1.6827]
[1755460410261,0.9151,4464.5,4464.4,21.159]
[1755460410557,1.45668565,4464.5,4464.4,22.5957]
[1755460411561,1.70218565,4464.5,4464.4,1.6827]
[1755460412760,1.70218565,4464.5,4464.0,3.2078]
[1755460412761,1.45668565,4464.5,4464.0,3.2078]
[1755460412965,0.4457,4463.6,4463.5,3.4538]
[1755460413258,1.09,4463.6,4463.5,3.2078]
[1755460413462,0.4457,4463.1,4463.0,25.3935]
[1755460413658,0.4457,4463.1,4463.0,4.8905]
[1755460413659,0.8445,4463.1,4463.0,4.8905]
[1755460413861,1.09,4463.1,4463.0,25.7945]
[1755460414058,1.09,4463.1,4463.0,4.8905]
[1755460414456,1.09,4463.1,4463.0,3.2078]
[1755460415453,0.4457,4462.6,4462.5,3.2078]
[1755460415659,0.8445,4462.6,4462.5,4.8905]
[1755460415864,0.3988,4463.0,4462.5,4.8905]
[1755460416064,1.4507898,4462.9,4462.8,0.6706]
[1755460416264,1.4507898,4462.9,4462.8,1.2827]
[1755460416467,1.6962898,4462.9,4462.8,1.2827]
[1755460416664,1.6962898,4462.9,4462.8,1.6827]
[1755460419960,0.6062898,4462.9,4462.8,1.6827]
[1755460420469,4.2978,4463.5,4463.4,0.6706]
[1755460420667,4.90517155,4463.5,4463.4,0.4095]
[1755460420870,4.90517155,4463.5,4463.4,0.246]
[1755460421972,4.90517155,4463.5,4463.4,0.6616]
[1755460422172,1.69737155,4463.5,4463.4,0.6616]
[1755460422569,1.69737155,4463.5,4463.4,0.4095]
[1755460422775,1.09,4463.0,4462.9,20.865]
[1755460422976,1.45187155,4463.0,4462.9,22.5477]
[1755460423171,0.87817155,4463.0,4462.9,22.5477]
[1755460423572,1.05307155,4463.0,4462.9,22.5477]
[1755460424072,1.09,4462.7,4462.5,24.0708]
[1755460424273,1.09,4462.6,4462.5,24.7324]
[1755460424570,3.41811759,4464.7,4463.4,0.6283]
[1755460424876,0.3988,4465.7,4464.5,1.5415]
[1755460424877,0.60781788,4464.6,4464.5,1.5415]
[1755460425172,0.6085,4465.3,4464.6,1.0121]
[1755460425368,1.0994,4464.7,4464.6,1.6827]
[1755460425674,0.2455,4465.0,4464.6,1.6827]
[1755460425976,1.2075,4465.1,4465.0,1.6827]
[1755460426176,1.03399671,4465.1,4465.0,1.6827]
[1755460426468,0.4457,4465.1,4465.0,1.6827]
[1755460426675,1.2075,4465.1,4465.0,1.6827]
[1755460426866,1.4624,4465.1,4465.0,1.6827]
[1755460428374,1.71,4465.1,4465.0,1.6827]
[1755460428973,1.71,4465.1,4465.0,0.9227]
[1755460430371,3.9885,4466.0,4464.7,0.2622]
[1755460430570,1.0283,4465.8,4464.7,1.0508]
[1755460430770,0.6873,4464.9,4464.8,0.9355]
[1755460430970,1.468,4464.9,4464.8,1.7241]
[1755460432268,1.0283,4465.9,4464.8,1.7241]
[1755460432473,0.2476,4465.6,4464.9,0.2622]
[1755460432771,0.58797556,4465.5,4464.9,0.2622]
[1755460432975,1.468,4465.0,4464.9,1.3252]
[1755460433279,1.7156,4465.0,4464.9,1.7241]
[1755460433671,0.0224,4464.6,4464.5,3.2078]
[1755460433874,1.0759,4463.5,4463.4,3.2078]
[1755460434074,1.7156,4463.5,4463.4,3.2078]
[1755460434378,1.7156,4463.5,4463.0,0.6519]
[1755460434379,1.7156,4463.5,4463.0,0.2622]
[1755460434576,0.6873,4463.1,4463.0,0.2622]
[1755460434777,1.468,4463.1,4463.0,0.9355]
[1755460435078,1.468,4463.1,4463.0,1.7241]
[1755460439675,0.6873,4462.4,4462.3,3.6042]
[1755460439883,1.7156,4462.4,4462.3,3.8664]
[1755460440075,1.468,4462.4,4462.3,4.9319]
[1755460440480,0.3886,4462.8,4462.3,3.8811]
[1755460440785,0.8284,4462.8,4462.7,1.7241]
[1755460440985,1.468,4462.8,4462.7,1.7241]
[1755460441277,3.2078,4463.8,4463.7,0.1589]
[1755460441585,1.9145108,4463.8,4463.7,1.3344]
[1755460441780,2.3031108,4463.8,4463.4,0.2622]
[1755460442079,0.6873,4463.5,4463.4,1.4619]
[1755460442286,1.468,4463.5,4463.4,1.4619]
[1755460442477,0.4398,4463.5,4463.4,1.4619]
[1755460442672,0.4398,4463.5,4463.3,3.2078]
[1755460442673,1.7156,4463.5,4463.3,3.2078]
[1755460442877,0.6873,4463.5,4463.3,3.2078]
[1755460443078,1.7156,4463.4,4463.3,3.2078]
[1755460443476,0.7807,4464.2,4463.5,0.2622]
[1755460443683,0.58601073,4464.1,4463.5,0.2622]
[1755460443883,2.30161073,4464.0,4463.9,0.4211]
[1755460444288,2.30161073,4464.0,4463.4,0.7886]
[1755460444477,1.7156,4464.0,4463.5,0.2622]
[1755460444684,1.0794,4463.7,4463.6,1.7241]
[1755460444983,1.468,4463.7,4463.6,1.7241]
[1755460445583,1.7156,4463.7,4463.6,0.6586]
[1755460445780,0.6873,4463.4,4463.3,4.0186]
[1755460445976,1.7156,4463.4,4463.3,4.0186]
[1755460446181,1.468,4463.4,4463.3,4.9319]
[1755460446583,1.7156,4463.4,4463.3,4.9319]
[1755460446782,0.7807,4464.7,4463.4,0.6611]
[1755460446980,1.225688,4464.6,4463.6,0.2622]
[1755460447179,0.6873,4463.8,4463.7,1.4619]
[1755460447380,1.468,4463.8,4463.7,1.7241]
[1755460447990,0.2476,4464.1,4463.7,1.7241]
[1755460448188,1.2205,4464.1,4464.0,0.6733]
[1755460448389,1.468,4464.1,4464.0,1.7241]
[1755460448684,3.2078,4464.6,4463.4,0.0224]
[1755460448886,4.6758,4464.6,4464.5,1.7241]
[1755460449087,0.3921,4464.5,4463.4,1.0508]
[1755460449287,0.7807,4464.4,4463.5,0.7886]
[1755460449488,0.2476,4464.3,4463.6,0.2622]
[1755460449689,0.3921,4464.1,4463.6,0.2622]
[1755460449879,1.4385,4464.0,4463.7,0.2622]
[1755460450084,3.2301,4464.6,4463.5,0.9355]
[1755460450085,0.6873,4463.6,4463.5,0.9355]
[1755460450392,1.7156,4463.6,4463.5,1.7241]
[1755460450893,1.468,4463.6,4463.5,1.7241]
[1755460451287,0.6873,4463.6,4463.5,1.7241]
[1755460453496,0.7807,4463.9,4463.5,0.6733]
[1755460453692,1.468,4463.9,4463.8,0.6733]
[1755460453898,1.468,4463.9,4463.8,1.7241]
[1755460454198,1.7156,4463.9,4463.8,1.7241]
[1755460455893,0.7807,4464.7,4463.9,0.3897]
[1755460456095,2.30215087,4464.6,4464.5,0.4211]
[1755460457403,2.3019633,4464.6,4464.5,0.4211]
[1755460458102,2.3019633,4464.6,4464.5,1.287]
[1755460458697,0.6869,4464.1,4463.3,3.2078]
[1755460458898,1.4425,4463.5,4463.4,1.6602]
[1755460459495,1.0718,4463.5,4463.4,1.6602]
[1755460459700,0.6869,4463.5,4463.3,3.2078]
[1755460460012,0.6869,4463.5,4463.4,0.9115]
[1755460460013,0.9504,4463.5,4463.4,0.9115]
[1755460460402,1.706,4463.5,4463.4,0.9115]
[1755460461504,0.1724,4462.9,4462.8,1.6602]
[1755460461706,1.4425,4462.9,4462.8,1.6602]
[1755460462102,1.0191,4463.3,4462.8,1.0313]
[1755460462301,1.4425,4463.3,4463.2,1.6602]
[1755460463706,1.584997,4465.3,4464.0,0.3788]
[1755460464002,1.27400504,4465.2,4464.5,3.2078]
[1755460464198,1.27400504,4465.2,4464.1,1.0313]
[1755460464199,0.4294,4464.2,4464.1,1.0313]
[1755460464405,0.4294,4464.2,4464.1,1.6602]
[1755460464609,0.8143,4464.2,4464.1,1.6602]
[1755460465010,0.6484,4464.6,4464.1,1.6602]
[1755460465200,0.8143,4464.5,4464.4,0.6614]
[1755460465400,0.8143,4464.5,4464.4,1.6602]
[1755460465599,0.3849,4465.1,4464.5,0.62]
[1755460465801,0.4294,4464.6,4464.5,0.6614]
[1755460466002,1.40150391,4464.6,4464.5,0.6614]
[1755460466205,2.02970391,4464.6,4464.5,0.6614]
[1755460466404,2.02970391,4464.6,4464.5,1.2814]
[1755460467008,2.29320391,4464.6,4464.5,1.2814]
[1755460467912,2.02970391,4464.6,4464.5,1.6602]
[1755460468309,1.4425,4464.6,4464.5,1.6602]
[1755460468514,2.0295762,4464.6,4464.5,1.6602]
[1755460468709,1.706,4464.6,4464.5,1.6602]
[1755460468912,2.29308481,4464.6,4464.5,1.6602]
[1755460469117,2.29306365,4464.6,4464.5,1.0283]
[1755460469414,2.29292232,4464.6,4464.5,0.6584]
[1755460469721,0.58692232,4464.6,4464.0,3.2078]
[1755460470015,1.706,4464.1,4464.0,0.4083]
[1755460470409,0.257,4463.8,4463.7,0.2501]
[1755460470709,0.3849,4464.4,4463.7,0.9115]
[1755460471013,0.6934,4464.2,4464.1,0.4083]
[1755460471217,1.53729284,4464.2,4464.1,1.0283]
[1755460471608,1.53729284,4464.2,4464.1,1.2814]
[1755460471609,2.29289284,4464.2,4464.1,1.2814]
[1755460471808,2.29289284,4464.2,4464.1,1.6602]
[1755460472613,2.02939284,4464.2,4464.1,1.6602]
[1755460473618,2.29289284,4464.2,4464.1,0.9115]
[1755460473914,2.29289284,4464.2,4464.1,0.4083]
[1755460474318,2.29289284,4464.2,4464.1,0.6614]
[1755460474511,2.29289284,4464.2,4464.1,0.9115]
[1755460474712,2.29289284,4464.2,4464.1,1.2814]
[1755460475018,2.29289284,4464.2,4464.1,0.6584]
[1755460475912,2.29289284,4464.2,4464.1,1.0283]
[1755460476115,2.29289284,4464.2,4464.1,1.2814]
[1755460476311,2.29289284,4464.2,4464.1,1.6602]
[1755460477215,1.706,4464.1,4464.0,0.4083]
[1755460477420,2.29289284,4464.1,4464.0,0.6584]
[1755460478921,2.29289284,4464.1,4464.0,1.6602]
[1755460479116,0.58689284,4464.1,4464.0,1.0372]
[1755460479314,4.6503,4464.7,4464.6,1.6602]
[1755460479513,5.23926022,4464.7,4464.6,1.6602]
[1755460480220,1.706,4464.1,4464.0,0.9115]
[1755460480415,0.58896022,4464.1,4464.0,1.6602]
[1755460480720,1.23086022,4464.1,4464.0,1.6602]
[1755460481021,2.03146022,4464.1,4464.0,1.6602]
[1755460484423,1.0718,4464.0,4463.9,0.4083]
[1755460484723,2.29496022,4464.0,4463.9,1.2814]
[1755460486425,0.58896022,4464.0,4463.9,4.868]
[1755460486625,3.4713,4464.7,4463.9,3.8692]
[1755460486825,1.4425,4464.3,4464.2,1.6602]
[1755460487124,2.29468307,4464.3,4464.2,1.2814]
[1755460487421,1.53908307,4464.3,4463.9,3.4579]